bitfinex/quotes_SOLUSD_20250129
["timestamp","ask_amount","ask_price","bid_price","bid_amount"]
[1738125336134,36.30572104,231.39,231.38,0.063]
[1738125337547,36.22073888,231.39,231.38,0.063]
[1738125337721,47.10935974,231.39,231.38,0.063]
[1738125338549,36.30329574,231.39,231.38,0.063]
[1738125338743,34.72799574,231.39,231.38,0.063]
[1738125339650,10.95111174,231.39,231.38,0.063]
[1738125339818,0.08255686,231.39,231.38,0.063]
[1738125342244,0.08255686,231.39,231.38,10.80606488]
[1738125345132,0.08255686,231.39,231.38,0.063]
[1738125348057,0.08255686,231.39,231.38,10.80606488]
[1738125348231,0.08255686,231.39,231.38,15.12786488]
[1738125348633,0.08255686,231.39,231.38,11.27421121]
[1738125354752,0.08255686,231.39,231.38,4.3848]
[1738125355138,0.08255686,231.39,231.38,11.27421121]
[1738125356668,0.08255686,231.39,231.38,15.14639561]
[1738125357042,0.08255686,231.39,231.38,18.36878358]
[1738125357368,0.03,231.4,231.38,18.36878358]
[1738125357869,0.07925126,231.39,231.38,18.36878358]
[1738125359667,0.07925126,231.39,231.38,14.04698358]
[1738125360259,0.07925126,231.39,231.38,18.36878358]
[1738125360461,0.07925126,231.39,231.38,15.14639561]
[1738125361147,0.07925126,231.39,231.38,0.063]
[1738125362567,0.20474126,231.39,231.38,0.063]
[1738125362881,23.98162526,231.39,231.38,0.063]
[1738125363046,106.48162526,231.39,231.38,0.063]
[1738125363747,36.74232087,231.39,231.38,0.063]
[1738125363976,38.69659811,231.39,231.38,0.063]
[1738125364177,38.69659811,231.39,231.38,0.0001]
[1738125364351,37.69659811,231.39,231.38,0.0001]
[1738125367273,38.69659811,231.39,231.38,0.0001]
[1738125368274,37.69659811,231.39,231.38,0.0001]
[1738125370077,38.69659811,231.39,231.38,0.0001]
[1738125371364,37.69659811,231.39,231.38,0.0001]
[1738125372781,38.69659811,231.39,231.38,0.0001]
[1738125374594,0.12549,231.31,231.28,0.063]
[1738125374877,10.88708561,231.29,231.28,0.063]
[1738125375057,35.10544685,231.29,231.28,0.063]
[1738125376354,36.10454685,231.29,231.28,0.063]
[1738125377687,36.18245389,231.29,231.28,0.063]
[1738125378680,35.18335389,231.29,231.28,0.063]
[1738125379658,34.74187665,231.29,231.28,0.063]
[1738125380290,35.18335389,231.29,231.28,0.063]
[1738125380791,10.96499265,231.29,231.28,0.063]
[1738125383194,11.40646989,231.29,231.28,0.063]
[1738125383391,35.18335389,231.29,231.28,0.063]
[1738125386677,31.32286773,231.29,231.28,0.063]
[1738125387489,30.88139049,231.29,231.28,0.063]
[1738125388193,7.10450649,231.29,231.28,0.063]
[1738125390998,30.88139049,231.29,231.28,0.063]
[1738125391777,32.32196773,231.29,231.28,0.0001]
[1738125392870,33.32196773,231.29,231.28,0.0001]
[1738125393681,32.32196773,231.29,231.28,0.0001]
[1738125394600,31.32286773,231.29,231.28,0.0001]
[1738125394898,30.88139049,231.29,231.28,0.0001]
[1738125395869,0.20339704,231.29,231.28,0.0001]
[1738125396069,0.07790704,231.29,231.28,0.0001]
[1738125396293,0.07790704,231.29,231.28,6.90120945]
[1738125397383,0.063,231.29,231.28,6.90120945]
[1738125397895,0.1424301,231.29,231.28,6.90120945]
[1738125398410,0.1424301,231.29,231.28,0.0001]
[1738125400677,0.2679201,231.29,231.28,0.0001]
[1738125401100,82.7679201,231.29,231.28,0.0001]
[1738125405818,82.6424301,231.29,231.28,0.0001]
[1738125406109,0.1424301,231.29,231.28,10.77623882]
[1738125407209,0.1424301,231.29,231.28,15.09993882]
[1738125408205,0.1424301,231.29,231.28,10.77623882]
[1738125408905,0.1424301,231.29,231.28,0.0001]
[1738125409411,82.6424301,231.29,231.28,0.0001]
[1738125412812,82.7679201,231.29,231.28,0.0001]
[1738125414546,82.6424301,231.29,231.28,0.0001]
[1738125414691,0.1424301,231.29,231.28,0.0001]
[1738125416501,0.1424301,231.29,231.28,10.77623882]
[1738125417127,0.1424301,231.29,231.28,22.89263882]
[1738125417297,0.08538101,231.31,231.29,23.902374]
[1738125417496,0.03,231.38,231.31,23.776884]
[1738125417700,0.03,231.38,231.37,10.77613882]
[1738125417925,0.11565757,231.38,231.37,10.77613882]
[1738125420233,0.11565757,231.38,231.35,10.77613882]
[1738125420736,0.11565757,231.38,231.37,10.77613882]
[1738125421818,0.11565757,231.38,231.37,16.89343882]
[1738125422204,0.11565757,231.38,231.37,6.1173]
[1738125423301,0.11565757,231.38,231.37,16.89343882]
[1738125424216,0.11565757,231.38,231.37,10.77613882]
[1738125424404,0.11565757,231.38,231.35,10.77613882]
[1738125425530,0.11565757,231.38,231.37,10.77613882]
[1738125426731,0.11565757,231.38,231.35,10.77613882]
[1738125432015,0.11565757,231.38,231.37,10.77613882]
[1738125433113,0.11565757,231.38,231.37,15.09813882]
[1738125433431,0.11565757,231.38,231.37,10.77613882]
[1738125434524,0.11565757,231.38,231.35,10.77613882]
[1738125435232,0.11565757,231.38,231.37,10.77613882]
[1738125437635,0.03,231.38,231.37,10.77613882]
[1738125437825,0.12347712,231.38,231.35,10.77613882]
[1738125445743,0.12347712,231.38,231.33,10.77613882]
[1738125447059,0.12347712,231.38,231.37,10.77613882]
[1738125448049,0.12347712,231.38,231.37,15.09813882]
[1738125450246,0.12347712,231.38,231.37,10.77613882]
[1738125450543,0.12347712,231.38,231.37,6.88976703]
[1738125452084,0.12347712,231.38,231.34,6.88976703]
[1738125452553,0.12347712,231.38,231.36,6.88976703]
[1738125454455,0.12347712,231.38,231.34,6.88976703]
[1738125454749,0.12347712,231.38,231.32,6.88976703]
[1738125455856,0.24896712,231.38,231.32,6.88976703]
[1738125457350,0.15549,231.38,231.32,6.88976703]
[1738125457544,0.03,231.38,231.32,6.88976703]
[1738125457754,0.0855861,231.33,231.32,6.88976703]
[1738125461664,0.0855861,231.33,231.32,11.21276703]
[1738125462452,0.0855861,231.33,231.32,14.44805319]
[1738125463644,0.0855861,231.33,231.32,10.12505319]
[1738125465671,0.0855861,231.33,231.32,6.88976703]
[1738125467171,0.0855861,231.33,231.31,0.03]
[1738125469079,0.0855861,231.33,231.32,6.88976703]
[1738125470262,0.0855861,231.33,231.32,10.12633025]
[1738125471091,0.0855861,231.33,231.32,14.44933025]
[1738125477170,0.0855861,231.33,231.32,10.12633025]
[1738125477370,6.88976703,231.37,231.32,3.23656322]
[1738125477898,0.08960761,231.33,231.32,3.23656322]
[1738125479089,0.08960761,231.33,231.32,7.55956322]
[1738125479598,0.08960761,231.33,231.32,3.23656322]
[1738125480793,0.15260761,231.33,231.32,7.55956322]
[1738125482190,0.15260761,231.33,231.32,14.44933025]
[1738125484591,0.15260761,231.33,231.32,7.55956322]
[1738125484795,0.15260761,231.33,231.32,3.23656322]
[1738125486491,7.04237464,231.33,231.32,3.23656322]
[1738125487703,0.15260761,231.33,231.31,0.03]
[1738125487881,0.15260761,231.33,231.31,4.3531]
[1738125488914,0.15260761,231.33,231.31,0.03]
[1738125490201,7.04237464,231.33,231.31,0.03]
[1738125493397,0.12549,231.32,231.31,0.03]
[1738125494282,23.902374,231.32,231.31,0.03]
[1738125494788,24.34385124,231.32,231.31,0.03]
[1738125495304,43.902374,231.29,231.28,0.0001]
[1738125495600,51.23361827,231.29,231.28,0.0001]
[1738125496704,0.12549,231.27,231.26,0.063]
[1738125496998,21.12459,231.25,231.24,0.063]
[1738125497207,23.16476724,231.25,231.24,0.063]
[1738125497800,23.24575581,231.25,231.24,0.063]
[1738125498682,81.47147496,231.25,231.24,0.063]
[1738125498880,81.47147496,231.25,231.2,0.063]
[1738125498881,20.9991,231.22,231.2,0.063]
[1738125499086,51.79124103,231.22,231.2,0.063]
[1738125500210,50.79214103,231.22,231.2,0.063]
[1738125501701,27.01525703,231.22,231.2,0.063]
[1738125502120,7.01525703,231.22,231.2,0.063]
[1738125502713,27.01525703,231.22,231.2,0.063]
[1738125503210,6.88976703,231.22,231.2,0.063]
[1738125503395,89.38976703,231.24,231.2,0.063]
[1738125503600,0.08098857,231.25,231.2,0.063]
[1738125503985,0.08098857,231.25,231.2,6.95276703]
[1738125504403,0.08098857,231.25,231.2,0.063]
[1738125507015,0.08098857,231.25,231.2,4.3882]
[1738125507613,0.08098857,231.25,231.21,4.388]
[1738125508207,0.08098857,231.25,231.21,0.063]
[1738125508411,6.88976703,231.24,231.21,0.063]
[1738125509014,6.88976703,231.22,231.21,0.063]
[1738125509218,7.01525703,231.22,231.21,0.063]
[1738125510397,30.79214103,231.22,231.21,0.063]
[1738125510629,32.23361827,231.22,231.21,0.063]
[1738125511114,30.79214103,231.22,231.21,0.063]
[1738125512520,23.902374,231.22,231.21,0.063]
[1738125512822,34.69372658,231.22,231.21,0.063]
[1738125515418,10.79135258,231.22,231.21,0.063]
[1738125515926,10.85435258,231.22,231.21,0.063]
[1738125517923,10.94271424,231.22,231.21,0.063]
[1738125518829,0.15136166,231.22,231.21,0.063]
[1738125521407,10.94271424,231.22,231.21,0.063]
[1738125525831,93.44271424,231.22,231.21,0.063]
[1738125528434,0.15136166,231.22,231.21,0.063]
[1738125534733,0.15136166,231.22,231.21,4.388]
[1738125535418,0.15136166,231.22,231.21,7.61749603]
[1738125537445,0.063,231.22,231.21,7.61749603]
[1738125537834,0.09413208,231.25,231.24,20.0]
[1738125538033,3.208e-05,231.25,231.24,66.98927885]
[1738125538426,3.208e-05,231.25,231.24,39.38231497]
[1738125538630,3.208e-05,231.25,231.24,42.611811]
[1738125538937,3.208e-05,231.25,231.24,21.033937]
[1738125539445,0.06303208,231.25,231.24,41.033937]
[1738125540527,0.06303208,231.25,231.24,64.936311]
[1738125540844,0.06303208,231.25,231.24,72.54327488]
[1738125541048,0.06303208,231.25,231.24,45.936311]
[1738125542240,8.543e-05,231.27,231.26,30.0]
[1738125542451,9.089e-05,231.28,231.27,25.902374]
[1738125543129,9.089e-05,231.28,231.27,30.226274]
[1738125543334,8.415e-05,231.29,231.28,30.80411497]
[1738125544441,8.415e-05,231.29,231.28,34.033611]
[1738125544647,8.415e-05,231.29,231.28,38.357311]
[1738125547426,2.979e-05,231.3,231.29,57.532974]
[1738125547627,3.365e-05,231.31,231.29,57.532974]
[1738125547829,3.365e-05,231.31,231.3,13.31044097]
[1738125548952,3.365e-05,231.31,231.3,17.63374097]
[1738125549146,3.365e-05,231.31,231.3,20.863237]
[1738125551953,0.03,231.41,231.37,21.0]
[1738125552250,0.03,231.41,231.38,0.12549]
[1738125552552,0.03,231.41,231.4,6.90174097]
[1738125553051,0.03,231.41,231.4,11.22324097]
[1738125555458,0.03,231.41,231.4,35.12561497]
[1738125555751,0.03,231.41,231.4,118.22561497]
[1738125555949,0.03,231.41,231.4,94.32324097]
[1738125556326,0.03,231.41,231.4,90.00174097]
[1738125557842,0.1117967,231.41,231.4,90.00174097]
[1738125560244,0.1117967,231.41,231.4,83.1]
[1738125561236,0.1117967,231.41,231.34,9.78174097]
[1738125561237,0.1117967,231.41,231.34,2.88]
[1738125561439,6.90174097,231.4,231.34,2.88]
[1738125561856,6.90174097,231.4,231.32,90.00174097]
[1738125563350,6.90174097,231.38,231.31,2.88]
[1738125564550,6.90174097,231.38,231.31,7.2031]
[1738125564754,89.40174097,231.4,231.32,6.90174097]
[1738125567961,6.90174097,231.34,231.26,6.93174097]
[1738125568147,6.90174097,231.34,231.26,9.81174097]
[1738125568837,6.90174097,231.34,231.26,14.13574097]
[1738125569160,6.90174097,231.36,231.28,6.90174097]
[1738125571065,6.90174097,231.38,231.3,6.90174097]
[1738125572189,84.0183,231.4,231.34,6.90174097]
[1738125573569,90.92004097,231.4,231.32,6.90174097]
[1738125576862,84.0183,231.4,231.34,6.90174097]
[1738125577366,84.0813,231.4,231.34,6.90174097]
[1738125577875,0.09077268,231.35,231.34,6.90174097]
[1738125579961,0.09077268,231.35,231.32,6.93174097]
[1738125582671,0.09077268,231.35,231.32,0.03]
[1738125583572,0.09077268,231.35,231.32,6.93174097]
[1738125583792,0.09077268,231.35,231.34,6.90174097]
[1738125587783,0.09077268,231.35,231.32,0.03]
[1738125587958,0.09077268,231.35,231.33,4.3228]
[1738125589864,0.09077268,231.35,231.34,6.90174097]
[1738125591585,0.09077268,231.35,231.34,11.22434097]
[1738125593969,0.09077268,231.35,231.34,14.44706419]
[1738125594862,0.09077268,231.35,231.34,38.34943819]
[1738125595390,7.268e-05,231.35,231.34,38.34943819]
[1738125595697,7.268e-05,231.35,231.34,121.44943819]
[1738125596681,7.268e-05,231.35,231.34,97.54706419]
[1738125597409,0.063,231.4,231.34,97.54706419]
[1738125597697,0.063,231.4,231.38,6.90174097]
[1738125597884,0.09211905,231.39,231.38,11.22354097]
[1738125602984,0.09211905,231.39,231.38,14.44776517]
[1738125604600,0.09211905,231.39,231.38,97.54776517]
[1738125606092,0.09211905,231.39,231.38,121.45013917]
[1738125606288,0.09211905,231.39,231.38,122.45013917]
[1738125607799,0.08810652,231.43,231.42,0.12549]
[1738125608104,0.063,231.5,231.45,20.12549]
[1738125608306,0.063,231.5,231.45,53.68411497]
[1738125608503,0.063,231.5,231.45,9.78174097]
[1738125608703,0.063,231.5,231.45,13.00596517]
[1738125609304,0.063,231.5,231.45,17.32646517]
[1738125609790,6.96474097,231.5,231.45,3.2242242]
[1738125610205,6.96474097,231.5,231.43,7.2007]
[1738125610898,6.93174097,231.46,231.37,94.32364097]
[1738125611103,6.90174097,231.44,231.38,2.88]
[1738125611485,6.90174097,231.44,231.37,87.4219]
[1738125612306,6.90174097,231.44,231.35,14.10414097]
[1738125612601,6.90174097,231.42,231.35,6.93174097]
[1738125613099,6.90174097,231.42,231.35,11.25414097]
[1738125613907,6.90174097,231.4,231.35,0.03]
[1738125614416,82.5,231.44,231.35,0.03]
[1738125614417,6.90174097,231.38,231.35,0.03]
[1738125614889,6.90174097,231.36,231.35,0.03]
[1738125615093,89.40174097,231.38,231.35,0.03]
[1738125616208,6.90174097,231.36,231.35,0.03]
[1738125616412,30.80411497,231.36,231.35,0.03]
[1738125620200,58.85255609,231.36,231.35,0.03]
[1738125621120,31.24559221,231.36,231.35,0.03]
[1738125621818,31.33638219,231.36,231.35,0.03]
[1738125622514,30.89490495,231.36,231.35,0.03]
[1738125623601,31.89400495,231.36,231.35,0.03]
[1738125624029,30.89490495,231.36,231.35,0.03]
[1738125624209,31.89400495,231.36,231.35,0.03]
[1738125625610,30.89490495,231.36,231.35,0.03]
[1738125628415,59.50186883,231.36,231.35,0.0001]
[1738125628617,60.50096883,231.36,231.35,0.0001]
[1738125628829,30.89490495,231.36,231.35,0.0001]
[1738125632538,32.89400495,231.36,231.35,0.0001]
[1738125633104,60.50096883,231.36,231.35,0.0001]
[1738125633914,30.89490495,231.36,231.35,0.0001]
[1738125637235,59.50186883,231.36,231.35,0.0001]
[1738125637441,59.41107885,231.36,231.35,0.0001]
[1738125637805,23.902374,231.35,231.34,0.0001]
[1738125638009,24.34385124,231.35,231.34,0.0001]
[1738125638742,51.80321497,231.33,231.32,0.0001]
[1738125639037,50.80411497,231.33,231.32,0.0001]
[1738125641240,0.14607052,231.36,231.32,0.0001]
[1738125641241,6.90174097,231.35,231.32,0.0001]
[1738125642039,0.14607052,231.36,231.32,0.0001]
[1738125642432,0.14607052,231.36,231.33,6.90174097]
[1738125646352,0.14607052,231.36,231.35,6.90174097]
[1738125646522,0.14607052,231.36,231.35,13.47144097]
[1738125646725,0.14607052,231.36,231.35,15.01984097]
[1738125647622,0.14607052,231.36,231.35,8.1181]
[1738125649651,0.14607052,231.36,231.35,15.01984097]
[1738125650158,0.14607052,231.36,231.35,19.34224097]
[1738125650336,0.14607052,231.36,231.35,15.01984097]
[1738125654457,0.14607052,231.36,231.35,15.14533097]
[1738125654774,0.14607052,231.36,231.35,19.46773097]
[1738125655257,0.14607052,231.36,231.35,15.01984097]
[1738125656660,0.14607052,231.36,231.35,19.34224097]
[1738125657437,0.063,231.36,231.35,22.55687323]
[1738125657851,0.15589271,231.36,231.35,22.55687323]
[1738125658236,0.15589271,231.36,231.35,18.23447323]
[1738125658578,0.15589271,231.36,231.35,3.21463226]
[1738125659762,0.15589271,231.36,231.34,0.03]
[1738125660689,7.05763368,231.36,231.34,0.03]
[1738125662986,0.15589271,231.36,231.34,0.03]
[1738125663393,0.15589271,231.36,231.35,6.90174097]
[1738125664684,0.15589271,231.36,231.35,11.22414097]
[1738125664885,0.15589271,231.36,231.35,12.34963097]
[1738125665076,0.15589271,231.36,231.35,104.77327885]
[1738125665475,9.271e-05,231.36,231.35,107.98804218]
[1738125666191,9.271e-05,231.36,231.35,25.6041943]
[1738125666570,9.271e-05,231.36,231.35,29.46572075]
[1738125668495,9.271e-05,231.36,231.35,112.56572075]
[1738125670969,9.271e-05,231.36,231.35,108.11783075]
[1738125671398,9.271e-05,231.36,231.35,104.90306742]
[1738125672402,9.271e-05,231.36,231.35,109.22546742]
[1738125674585,9.271e-05,231.36,231.35,104.90306742]
[1738125674779,9.271e-05,231.36,231.35,96.74326742]
[1738125675095,0.06309271,231.36,231.34,4.3525]
[1738125675276,0.06309271,231.36,231.34,0.03]
[1738125676897,10.76326742,231.35,231.34,0.03]
[1738125677876,10.85618974,231.35,231.34,0.03]
[1738125680799,34.75856374,231.35,231.34,0.03]
[1738125680985,36.37326374,231.35,231.34,0.03]
[1738125682310,1.70762232,231.35,231.34,0.03]
[1738125682906,25.60999632,231.35,231.34,0.03]
[1738125684103,25.48450632,231.35,231.34,0.03]
[1738125684790,25.60999632,231.35,231.34,0.03]
[1738125686779,32.50814701,231.35,231.34,0.03]
[1738125693290,34.23914401,231.35,231.34,0.03]
[1738125693896,23.86980632,231.35,231.34,0.03]
[1738125696715,24.43677356,231.35,231.34,0.03]
[1738125697423,24.34385124,231.35,231.34,0.03]
[1738125697918,24.43152732,231.35,231.34,0.03]
[1738125698808,23.99005008,231.35,231.34,0.03]
[1738125701525,43.902374,231.33,231.32,0.0001]
[1738125701726,51.24200193,231.33,231.32,0.0001]
[1738125702429,6.89815069,231.27,231.26,0.03]
[1738125703511,30.80052469,231.27,231.26,0.03]
[1738125704203,30.80052469,231.27,231.21,0.063]
[1738125704204,23.776884,231.22,231.21,0.063]
[1738125704401,30.67503469,231.22,231.21,0.063]
[1738125704622,30.80052469,231.22,231.21,0.063]
[1738125709442,31.11651193,231.22,231.21,0.063]
[1738125709633,0.12549,231.21,231.2,0.063]
[1738125714131,0.12549,231.21,231.2,0.0001]
[1738125714334,20.12549,231.19,231.18,0.063]
[1738125714526,51.24200193,231.19,231.18,0.063]
[1738125718025,51.33391922,231.19,231.18,0.063]
[1738125719531,52.33391922,231.19,231.18,0.0001]
[1738125719746,43.902374,231.15,231.14,0.063]
[1738125720054,51.24200193,231.15,231.14,0.063]
[1738125723844,50.80052469,231.15,231.14,0.063]
[1738125725143,51.24200193,231.15,231.14,0.063]
[1738125728636,24.902374,231.14,231.13,0.0001]
[1738125728834,23.902374,231.1,231.09,0.03]
[1738125729143,30.80052469,231.1,231.08,0.03]
[1738125730267,6.89815069,231.09,231.08,0.03]
[1738125736574,6.89815069,231.11,231.08,0.03]
[1738125737780,89.39815069,231.13,231.08,0.03]
[1738125737979,0.09345093,231.09,231.08,0.03]
[1738125740872,6.99160162,231.09,231.08,0.03]
[1738125741884,30.89397562,231.09,231.08,0.03]
[1738125745179,6.99160162,231.09,231.08,0.03]
[1738125746787,0.09345093,231.09,231.08,0.03]
[1738125757487,0.063,231.11,231.08,0.03]
[1738125757989,0.09454851,231.09,231.08,0.03]
[1738125760194,0.15754851,231.09,231.08,0.03]
[1738125762886,24.05992251,231.09,231.08,0.03]
[1738125764396,25.05992251,231.09,231.08,0.03]
[1738125765404,10.79451871,231.03,231.02,0.03]
[1738125768524,10.79451871,231.03,230.94,12.3507]
[1738125768525,34.69689271,231.03,230.94,0.03]
[1738125768806,10.79451871,230.95,230.94,0.03]
[1738125770279,10.79451871,230.95,230.9,0.03]
[1738125770280,20.0,230.92,230.9,0.03]
[1738125770580,10.79451871,230.91,230.9,0.03]
[1738125778212,10.88708118,230.91,230.9,0.03]
[1738125779499,0.09256247,230.91,230.9,0.03]
[1738125780100,10.88708118,230.91,230.9,0.03]
[1738125780411,0.09256247,230.91,230.9,0.03]
[1738125783515,10.88708118,230.91,230.9,0.03]
[1738125790620,7.0162094,230.91,230.9,0.03]
[1738125792505,0.09256247,230.91,230.9,0.03]
[1738125792711,10.91022948,230.91,230.9,0.03]
[1738125793109,11.03571948,230.91,230.9,0.03]
[1738125794228,34.81260348,230.91,230.9,0.03]
[1738125794527,35.81170348,230.91,230.84,0.03]
[1738125794726,10.81766701,230.85,230.84,0.03]
[1738125795033,34.72004101,230.85,230.84,0.03]
[1738125795198,20.0,230.82,230.72,2.95956553]
[1738125795401,10.81766701,230.75,230.72,2.95956553]
[1738125795820,10.81766701,230.75,230.72,7.29376553]
[1738125798118,0.09443169,230.73,230.72,7.29376553]
[1738125798431,0.09443169,230.73,230.72,2.95956553]
[1738125798603,10.9120987,230.73,230.72,2.95956553]
[1738125800216,0.09443169,230.73,230.72,2.95956553]
[1738125800930,0.09443169,230.73,230.72,4.61016553]
[1738125801116,0.09443169,230.73,230.72,10.87636553]
[1738125801324,0.09443169,230.73,230.72,21.69403254]
[1738125801525,3.169e-05,230.73,230.72,21.69403254]
[1738125801717,6.062e-05,230.75,230.74,20.0]
[1738125802030,6.062e-05,230.75,230.74,55.72004101]
[1738125802825,6.062e-05,230.75,230.74,54.72004101]
[1738125803022,6.062e-05,230.75,230.74,56.72004101]
[1738125803534,2.417e-05,230.76,230.75,58.235974]
[1738125803708,2.417e-05,230.76,230.75,28.235974]
[1738125807444,8.518e-05,230.77,230.76,24.902374]
[1738125807635,8.518e-05,230.77,230.76,36.72004101]
[1738125808137,8.518e-05,230.77,230.76,11.81766701]
[1738125809042,8.518e-05,230.77,230.76,10.81766701]
[1738125809241,8.518e-05,230.77,230.76,11.81766701]
[1738125810013,8.518e-05,230.77,230.76,16.15116701]
[1738125812542,8.518e-05,230.77,230.76,15.15116701]
[1738125812845,8.518e-05,230.77,230.76,16.15116701]
[1738125814544,8.518e-05,230.77,230.76,12.25821791]
[1738125817544,6.98771791,230.84,230.76,12.25821791]
[1738125817736,6.98771791,230.84,230.77,2.9]
[1738125818044,0.08111952,230.78,230.77,2.9]
[1738125818557,0.08111952,230.78,230.77,7.2333]
[1738125818728,0.08111952,230.78,230.77,4.3333]
[1738125820236,0.08111952,230.78,230.75,4.3336]
[1738125821237,7.00583743,230.78,230.75,4.3336]
[1738125821726,6.92471791,230.77,230.75,4.3336]
[1738125821922,0.08111952,230.78,230.72,10.90636553]
[1738125821923,0.08111952,230.78,230.76,0.03]
[1738125822127,0.14411952,230.78,230.76,0.03]
[1738125824233,6.92471791,230.77,230.76,0.03]
[1738125828857,34.62358955,230.77,230.76,0.03]
[1738125829830,6.92471791,230.77,230.76,0.03]
[1738125834145,0.14411952,230.78,230.76,0.03]
[1738125835161,0.063,230.77,230.76,0.03]
[1738125836365,6.98771791,230.77,230.76,0.03]
[1738125836568,6.98771791,230.77,230.74,4.3338]
[1738125837165,0.063,230.77,230.74,4.3338]
[1738125837952,6.92471791,230.75,230.72,7.29366553]
[1738125838146,7.01429849,230.75,230.72,7.29366553]
[1738125839554,7.01429849,230.75,230.72,10.19366553]
[1738125840067,0.08958058,230.75,230.72,10.19366553]
[1738125842559,7.01429849,230.75,230.72,2.95956553]
[1738125843659,6.92471791,230.73,230.72,2.95956553]
[1738125851406,30.82709191,230.73,230.72,2.95956553]
[1738125851569,6.92471791,230.73,230.72,2.95956553]
[1738125853804,6.92471791,230.64,230.62,2.92]
[1738125854582,6.92471791,230.64,230.59,4.3367]
[1738125854809,6.92471791,230.6,230.58,15.1913]
[1738125855403,6.92471791,230.62,230.58,15.1913]
[1738125856198,6.92471791,230.64,230.58,15.1913]
[1738125856409,6.92471791,230.66,230.58,15.1913]
[1738125857907,6.92471791,230.62,230.58,15.1913]
[1738125858079,0.08810577,230.59,230.58,15.1913]
[1738125859780,0.08810577,230.59,230.58,13.6814]
[1738125860702,0.08810577,230.59,230.58,44.50849191]
[1738125861483,0.08810577,230.59,230.58,20.60611791]
[1738125862281,0.08810577,230.59,230.58,13.6814]
[1738125863706,0.08810577,230.59,230.58,20.60611791]
[1738125867102,0.08810577,230.59,230.58,7.2767]
[1738125869906,0.08810577,230.59,230.58,7.3067]
[1738125876197,0.08810577,230.59,230.58,39.13379191]
[1738125877533,1.923899,230.77,230.59,23.902374]
[1738125877732,1.923899,230.77,230.61,6.92471791]
[1738125878320,0.09236959,230.62,230.61,6.92471791]
[1738125879125,0.09236959,230.62,230.61,11.26101791]
[1738125881524,0.09236959,230.62,230.61,35.16339191]
[1738125882015,0.09236959,230.62,230.61,36.16339191]
[1738125882800,0.09236959,230.62,230.61,43.79449191]
[1738125884037,0.09236959,230.62,230.61,42.79449191]
[1738125884243,0.09236959,230.62,230.61,43.79449191]
[1738125884444,0.09236959,230.62,230.61,35.869774]
[1738125887220,0.09236959,230.62,230.61,11.9674]
[1738125887412,0.09236959,230.62,230.61,2.92]
[1738125888143,0.09236959,230.62,230.61,22.92]
[1738125889038,0.09236959,230.62,230.61,20.0]
[1738125889221,0.09236959,230.62,230.61,7.2363]
[1738125890218,0.09236959,230.62,230.59,23.776884]
[1738125890541,0.09236959,230.62,230.6,7.2365]
[1738125893450,0.09236959,230.62,230.61,28.238674]
[1738125893633,0.09236959,230.62,230.61,29.238674]
[1738125895836,0.09236959,230.62,230.61,36.16339191]
[1738125897459,6.92471791,230.69,230.64,20.0]
[1738125898131,0.08134946,230.65,230.64,20.0]
[1738125898856,0.08134946,230.65,230.64,24.3357]
[1738125899038,0.08134946,230.65,230.64,4.3357]
[1738125899354,0.08134946,230.65,230.64,24.3357]
[1738125900037,0.08134946,230.65,230.64,27.2357]
[1738125901625,0.08134946,230.65,230.64,22.9]
[1738125901852,7.00606737,230.65,230.64,2.9]
[1738125902537,7.00606737,230.65,230.6,20.0]
[1738125903049,6.92471791,230.61,230.58,0.03]
[1738125903220,6.92471791,230.59,230.58,0.03]
[1738125904749,0.08134946,230.65,230.58,0.03]
[1738125904750,6.92471791,230.6,230.58,0.03]
[1738125905553,6.92471791,230.59,230.58,0.03]
[1738125907635,6.92471791,230.6,230.58,0.03]
[1738125915852,6.92471791,230.62,230.58,0.03]
[1738125916148,7.00606737,230.65,230.58,0.03]
[1738125916975,0.08134946,230.65,230.61,6.92471791]
[1738125917351,6.92471791,230.69,230.61,6.92471791]
[1738125917590,6.92471791,230.68,230.6,6.92471791]
[1738125917751,6.92471791,230.66,230.59,4.3367]
[1738125918155,6.92471791,230.6,230.58,0.03]
[1738125918478,6.92471791,230.59,230.58,0.03]
[1738125931287,7.0117119,230.62,230.58,0.03]
[1738125932177,0.08699399,230.62,230.58,0.03]